bitfinex/quotes_SOLUSD_20240824
["timestamp","ask_amount","ask_price","bid_price","bid_amount"]
[1724470921698,4.97629436,153.7,153.64,8.7282]
[1724470921874,4.97629436,153.69,153.64,8.7282]
[1724470922199,4.97629436,153.68,153.64,8.7282]
[1724470922371,4.97629436,153.67,153.64,8.7282]
[1724470922575,4.97629436,153.66,153.64,8.7282]
[1724470922803,45.0,153.72,153.64,8.7282]
[1724470922973,4.9763127,153.71,153.64,8.7282]
[1724470923175,4.9763127,153.7,153.65,7.31907856]
[1724470923367,4.9763127,153.69,153.65,7.31907856]
[1724470923567,4.9763127,153.68,153.65,7.31907856]
[1724470923877,0.12549,153.73,153.65,7.31907856]
[1724470924194,4.97598535,153.72,153.65,7.31907856]
[1724470924386,4.97591365,153.71,153.65,7.31907856]
[1724470924696,4.97591365,153.7,153.65,7.31907856]
[1724470924896,4.97591365,153.69,153.65,7.31907856]
[1724470925077,45.25098,153.73,153.65,6.0176]
[1724470925283,4.97609173,153.72,153.65,6.0176]
[1724470925493,4.97609173,153.71,153.65,6.0176]
[1724470925787,4.97609173,153.7,153.65,6.0176]
[1724470925986,6.78234711,153.76,153.66,16.6101]
[1724470926192,4.97614469,153.75,153.69,16.6101]
[1724470926500,4.97614469,153.74,153.69,16.6101]
[1724470926669,4.97614469,153.73,153.69,16.6101]
[1724470926866,6.5032,153.77,153.69,16.6101]
[1724470927291,32.19263361,153.78,153.69,16.6101]
[1724470927492,45.25098,153.77,153.69,16.6101]
[1724470929097,51.75418,153.77,153.69,16.6101]
[1724470929881,25.68983361,153.78,153.69,16.6101]
[1724470930103,20.0,153.77,153.69,16.6101]
[1724470931108,0.25098,153.76,153.69,16.6101]
[1724470931306,45.25098,153.76,153.69,16.6101]
[1724470932516,77.44451361,153.76,153.69,16.6101]
[1724470934677,25.68983361,153.74,153.68,6.0176]
[1724470935217,45.25098,153.73,153.68,6.0176]
[1724470943016,6.5054,153.72,153.68,6.0176]
[1724470943223,45.25098,153.71,153.68,6.0176]
[1724470944227,0.25098,153.71,153.68,6.0176]
[1724470945025,45.0,153.72,153.68,6.0176]
[1724470945215,45.0,153.73,153.68,6.0176]
[1724470945533,45.12549,153.74,153.68,6.0176]
[1724470945699,20.12549,153.73,153.68,6.0176]
[1724470948932,0.12549,153.73,153.68,6.0176]
[1724470950223,45.12549,153.74,153.68,6.0176]
[1724470950412,0.12549,153.74,153.68,6.0176]
[1724470950608,20.25098,153.74,153.68,6.0176]
[1724470966411,20.12549,153.74,153.68,6.0176]
[1724470966607,20.0,153.74,153.68,6.0176]
[1724470983555,51.75588,153.73,153.68,6.0176]
[1724470987055,25.68983361,153.72,153.65,16.6101]
[1724470987229,65.25098,153.71,153.65,16.6101]
[1724470987428,6.5063,153.7,153.65,16.6101]
[1724470987629,45.0,153.69,153.65,16.6101]
[1724470996270,25.68983361,153.66,153.59,22.4394]
[1724470996571,25.68983361,153.62,153.51,22.4394]
[1724470996752,45.12549,153.61,153.51,22.4394]
[1724470997666,0.12549,153.6,153.51,22.4394]
[1724470999779,4.95722583,153.59,153.51,22.4394]
[1724470999957,0.12549,153.6,153.52,1.30244206]
[1724471000287,6.5093,153.63,153.52,1.30244206]
[1724471000452,69.22095068,153.62,153.51,48.12923361]
[1724471000773,8.92730211,153.61,153.51,48.12923361]
[1724471000959,4.95733143,153.6,153.51,48.12923361]
[1724471001273,65.25098,153.62,153.51,48.12923361]
[1724471001449,8.92731159,153.61,153.51,48.12923361]
[1724471001649,65.25098,153.62,153.51,48.12923361]
[1724471001967,8.92731884,153.61,153.51,48.12923361]
[1724471002177,65.25098,153.62,153.51,48.12923361]
[1724471002351,4.95736873,153.61,153.51,48.12923361]
[1724471002679,65.25098,153.62,153.51,48.12923361]
[1724471002864,4.95733214,153.61,153.51,48.12923361]
[1724471003054,65.25098,153.62,153.51,48.12923361]
[1724471003255,4.95732177,153.61,153.53,25.68983361]
[1724471003456,65.25098,153.62,153.53,25.68983361]
[1724471003674,4.95734243,153.61,153.53,25.68983361]
[1724471003973,65.25098,153.62,153.53,25.68983361]
[1724471004163,65.25098,153.62,153.54,1.302314]
[1724471004368,65.25098,153.62,153.56,22.059]
[1724471004369,4.95734239,153.61,153.56,22.059]
[1724471004568,20.0,153.63,153.57,1.30218956]
[1724471004765,4.95757581,153.62,153.57,1.30218956]
[1724471004969,20.0,153.63,153.57,1.30218956]
[1724471005164,4.95762274,153.62,153.56,22.059]
[1724471005379,45.0,153.62,153.56,22.059]
[1724471007976,6.5104,153.6,153.56,22.059]
[1724471013273,6.76098,153.61,153.56,22.059]
[1724471013459,20.0,153.6,153.56,22.059]
[1724471013790,0.25098,153.61,153.56,22.059]
[1724471013963,20.25098,153.61,153.56,22.059]
[1724471015977,20.0,153.61,153.56,22.059]
[1724471018280,58.28738464,153.62,153.56,22.059]
[1724471018787,51.77778464,153.62,153.56,22.059]
[1724471021288,45.0,153.62,153.56,22.059]
[1724471021694,6.69865637,153.69,153.58,21.3919]
[1724471021895,23.34116869,153.68,153.59,1.30198108]
[1724471022069,4.958642,153.67,153.59,1.30198108]
[1724471022969,6.5074,153.67,153.59,1.30198108]
[1724471023167,20.12549,153.66,153.59,1.30198108]
[1724471024290,0.12549,153.66,153.59,1.30198108]
[1724471024591,45.25098,153.67,153.59,1.30198108]
[1724471024787,20.0,153.66,153.59,1.30198108]
[1724471025565,45.0,153.67,153.59,1.30198108]
[1724471025796,45.0,153.68,153.59,1.30198108]
[1724471025970,23.97136655,153.67,153.59,1.30198108]
[1724471026166,6.90201239,153.69,153.6,21.3919]
[1724471026470,6.90201239,153.69,153.61,1.30171484]
[1724471026471,9.05568934,153.68,153.61,1.30171484]
[1724471026674,0.12549,153.68,153.61,1.30171484]
[1724471026890,0.25098,153.68,153.61,1.30171484]
[1724471027791,45.25098,153.68,153.61,1.30171484]
[1724471027971,45.25098,153.68,153.6,21.3919]
[1724471028178,51.75798,153.68,153.6,21.3919]
[1724471028378,3.97124583,153.67,153.6,21.3919]
[1724471028577,51.75798,153.68,153.6,21.3919]
[1724471028785,3.97124583,153.67,153.6,21.3919]
[1724471028979,51.75798,153.68,153.6,21.3919]
[1724471029194,8.92996703,153.67,153.6,21.3919]
[1724471029374,45.25098,153.66,153.6,21.3919]
[1724471029570,51.75798,153.68,153.6,21.3919]
[1724471029765,8.92998014,153.67,153.6,21.3919]
[1724471029998,45.25098,153.66,153.6,21.3919]
[1724471030198,77.44781361,153.68,153.6,21.3919]
[1724471030435,8.93000884,153.67,153.6,21.3919]
[1724471030570,45.25098,153.66,153.6,21.3919]
[1724471030771,0.25098,153.66,153.6,21.3919]
[1724471031098,0.25098,153.67,153.6,21.3919]
[1724471032265,3.97125919,153.66,153.6,21.3919]
[1724471032471,0.25098,153.67,153.6,21.3919]
[1724471032793,8.92996064,153.66,153.6,21.3919]
[1724471032971,0.25098,153.67,153.6,21.3919]
[1724471033171,8.929906,153.66,153.6,21.3919]
[1724471033496,0.25098,153.67,153.6,21.3919]
[1724471033693,8.92999581,153.66,153.6,21.3919]
[1724471033997,0.25098,153.67,153.6,21.3919]
[1724471034195,8.9300046,153.66,153.6,21.3919]
[1724471034407,0.25098,153.67,153.6,21.3919]
[1724471034589,8.93000584,153.66,153.6,21.3919]
[1724471034899,0.25098,153.67,153.6,21.3919]
[1724471035204,8.93006789,153.66,153.6,21.3919]
[1724471035387,0.25098,153.67,153.6,21.3919]
[1724471035588,8.93012408,153.66,153.6,21.3919]
[1724471035789,0.25098,153.67,153.6,21.3919]
[1724471035982,8.93012688,153.66,153.6,21.3919]
[1724471036177,0.25098,153.67,153.6,21.3919]
[1724471036481,8.9301883,153.66,153.6,21.3919]
[1724471036799,45.0,153.68,153.61,1.30191896]
[1724471036995,8.9301802,153.67,153.61,1.30191896]
[1724471037303,4.95884206,153.66,153.61,1.30191896]
[1724471037487,4.95884206,153.66,153.6,21.3919]
[1724471037678,45.0,153.68,153.6,21.3919]
[1724471037885,8.93023,153.67,153.6,21.3919]
[1724471038188,8.93023,153.66,153.6,21.3919]
[1724471038381,70.68983361,153.68,153.6,21.3919]
[1724471038580,8.93023935,153.67,153.6,21.3919]
[1724471038784,8.93023935,153.66,153.6,21.3919]
[1724471039084,70.68983361,153.68,153.6,21.3919]
[1724471039283,8.93025252,153.67,153.6,21.3919]
[1724471039484,8.93025252,153.66,153.6,21.3919]
[1724471039706,70.68983361,153.68,153.6,21.3919]
[1724471040009,8.93028479,153.67,153.6,21.3919]
[1724471040187,8.93028479,153.66,153.6,21.3919]
[1724471040501,70.68983361,153.68,153.6,21.3919]
[1724471040710,3.97146748,153.67,153.6,21.3919]
[1724471040884,8.9305191,153.67,153.6,21.3919]
[1724471041087,8.9305191,153.66,153.6,21.3919]
[1724471041296,4.95904961,153.67,153.6,21.3919]
[1724471041606,8.93036609,153.66,153.6,21.3919]
[1724471041916,4.95904961,153.67,153.6,21.3919]
[1724471042080,8.93034377,153.66,153.6,21.3919]
[1724471042289,8.93000941,153.65,153.6,21.3919]
[1724471042479,4.95904961,153.67,153.6,21.3919]
[1724471042680,8.93010437,153.66,153.6,21.3919]
[1724471042881,8.93010437,153.65,153.6,21.3919]
[1724471043081,4.95904961,153.67,153.6,21.3919]
[1724471043305,8.93007887,153.66,153.6,21.3919]
[1724471043475,4.95904961,153.67,153.6,21.3919]
[1724471043685,8.93008327,153.65,153.6,21.3919]
[1724471043995,4.95904961,153.67,153.6,21.3919]
[1724471044184,8.93008999,153.66,153.6,21.3919]
[1724471044510,8.93008999,153.65,153.6,21.3919]
[1724471044807,4.95904961,153.67,153.6,21.3919]
[1724471045012,8.92999969,153.66,153.6,21.3919]
[1724471045186,8.92999969,153.65,153.6,21.3919]
[1724471045387,4.95904961,153.67,153.6,21.3919]
[1724471045686,8.93008063,153.66,153.6,21.3919]
[1724471045878,8.93008063,153.65,153.6,21.3919]
[1724471046082,4.95904961,153.67,153.6,21.3919]
[1724471046293,8.93007759,153.66,153.6,21.3919]
[1724471046513,8.93007759,153.65,153.6,21.3919]
[1724471046711,4.95904961,153.67,153.6,21.3919]
[1724471046916,8.93015708,153.66,153.6,21.3919]
[1724471047217,3.9713047,153.65,153.6,21.3919]
[1724471047400,4.95880148,153.65,153.6,21.3919]
[1724471047584,4.95904961,153.67,153.6,21.3919]
[1724471047785,3.97126549,153.66,153.6,21.3919]
[1724471048104,3.97126549,153.65,153.6,21.3919]
[1724471048308,4.95904961,153.67,153.6,21.3919]
[1724471048615,9.05555482,153.66,153.6,21.3919]
[1724471048795,8.93006482,153.65,153.6,21.3919]
[1724471048991,0.12549,153.66,153.6,21.3919]
[1724471049199,8.93003117,153.65,153.6,21.3919]
[1724471049397,45.25098,153.66,153.6,21.3919]
[1724471049598,8.9300318,153.65,153.6,21.3919]
[1724471049792,45.25098,153.66,153.6,21.3919]
[1724471049993,8.92988245,153.65,153.6,21.3919]
[1724471050215,45.25098,153.66,153.6,21.3919]
[1724471050423,25.68983361,153.64,153.6,21.3919]
[1724471050596,45.25098,153.66,153.56,21.7841]
[1724471050597,25.68983361,153.62,153.56,21.7841]
[1724471050806,45.0,153.61,153.56,21.7841]
[1724471050996,0.25098,153.6,153.56,21.7841]
[1724471051327,45.0,153.61,153.56,21.7841]
[1724471051499,45.12549,153.62,153.56,21.7841]
[1724471051819,0.12549,153.61,153.56,21.7841]
[1724471064601,3.97047985,153.6,153.56,21.7841]
[1724471064799,0.12549,153.61,153.56,21.7841]
[1724471065113,3.97048268,153.6,153.56,21.7841]
[1724471065319,45.0,153.62,153.56,21.7841]
[1724471065530,3.97053318,153.61,153.56,21.7841]
[1724471065708,6.508,153.66,153.57,1.30219137]
[1724471065911,49.22166062,153.65,153.57,1.30219137]
[1724471066129,23.97068062,153.64,153.57,1.30219137]
[1724471066427,3.97068062,153.63,153.57,1.30219137]
[1724471066641,3.97068062,153.62,153.57,1.30219137]
[1724471066805,3.97068062,153.61,153.57,1.30219137]
[1724471067135,20.0,153.64,153.57,1.30219137]
[1724471067436,3.97054225,153.63,153.57,1.30219137]
[1724471067608,3.97054225,153.62,153.57,1.30219137]
[1724471067806,20.0,153.64,153.57,1.30219137]
[1724471067807,3.97054225,153.61,153.57,1.30219137]
[1724471068005,20.0,153.64,153.57,1.30219137]
[1724471068311,20.0,153.64,153.58,1.30203945]
[1724471068511,3.97092451,153.63,153.58,1.30203945]
[1724471068713,20.0,153.66,153.58,1.30203945]
[1724471068916,3.97104607,153.65,153.58,1.30203945]
[1724471069123,3.97104607,153.64,153.58,1.30203945]
[1724471069334,3.97104607,153.63,153.58,1.30203945]
[1724471069511,20.0,153.66,153.58,1.30203945]
[1724471069711,48.97114886,153.65,153.58,1.30203945]
[1724471069921,3.97114886,153.64,153.58,1.30203945]
[1724471070128,3.97114886,153.63,153.58,1.30203945]
[1724471070307,45.0,153.65,153.58,1.30203945]
[1724471070516,3.97114303,153.64,153.58,1.30203945]
[1724471070713,3.97114303,153.63,153.58,1.30203945]
[1724471071026,20.0,153.66,153.58,1.30203945]
[1724471071225,3.97126308,153.65,153.58,1.30203945]
[1724471071423,3.97126308,153.64,153.58,1.30203945]
[1724471071623,3.97126308,153.63,153.58,1.30203945]
[1724471071816,20.0,153.66,153.6,6.3156]
[1724471072140,20.0,153.66,153.6,7.61752898]
[1724471072432,3.97130294,153.65,153.6,7.61752898]
[1724471072612,3.97130294,153.64,153.6,7.61752898]
[1724471072933,3.97124737,153.63,153.6,7.61752898]
[1724471073229,20.0,153.66,153.6,7.61752898]
[1724471073407,3.97124362,153.65,153.6,7.61752898]
[1724471073732,3.97124362,153.64,153.6,7.61752898]
[1724471073906,3.97124362,153.63,153.6,7.61752898]
[1724471074107,20.0,153.66,153.6,7.61752898]
[1724471074325,3.97115993,153.65,153.6,7.61752898]
[1724471074522,3.97115993,153.64,153.6,7.61752898]
[1724471074726,3.97115993,153.63,153.6,7.61752898]
[1724471074929,20.0,153.66,153.6,7.61752898]
[1724471075124,3.97121143,153.65,153.6,7.61752898]
[1724471075405,3.97121143,153.64,153.6,7.61752898]
[1724471075632,3.97121143,153.63,153.6,7.61752898]
[1724471075931,20.0,153.66,153.6,7.61752898]
[1724471076317,3.97119298,153.65,153.6,7.61752898]
[1724471076515,3.97119298,153.64,153.6,7.61752898]
[1724471076814,3.97119298,153.63,153.6,7.61752898]
[1724471077127,20.0,153.66,153.61,1.30192834]
[1724471077431,3.97126236,153.65,153.61,1.30192834]
[1724471077617,3.97126236,153.64,153.61,1.30192834]
[1724471077812,3.97126236,153.63,153.61,1.30192834]
[1724471078013,20.0,153.67,153.61,1.30192834]
[1724471078322,3.9713179,153.66,153.6,6.3156]
[1724471078627,3.9713179,153.65,153.6,6.3156]
[1724471078832,3.9713179,153.64,153.6,6.3156]
[1724471079014,3.9713179,153.63,153.61,1.30181319]
[1724471079212,20.0,153.67,153.61,1.30181319]
[1724471079416,3.97117484,153.66,153.61,1.30181319]
[1724471079615,3.97117484,153.65,153.61,1.30181319]
[1724471079825,3.97117484,153.64,153.61,1.30181319]
[1724471080021,3.97117371,153.63,153.61,1.30181319]
[1724471080334,20.0,153.67,153.61,1.30181319]
[1724471080531,3.9712741,153.66,153.61,1.30181319]
[1724471080741,3.9712741,153.65,153.61,1.30181319]
[1724471081041,3.9712741,153.64,153.61,1.30181319]
[1724471081223,3.9712741,153.63,153.61,1.30181319]
[1724471081424,20.0,153.68,153.61,1.30181319]
[1724471081728,3.97128402,153.67,153.61,1.30181319]
[1724471081915,3.97128402,153.66,153.6,6.3156]
[1724471082114,3.97128402,153.65,153.6,6.3156]
[1724471082312,3.97128402,153.64,153.6,6.3156]
[1724471082532,20.0,153.68,153.6,6.3156]
[1724471082731,3.97140048,153.67,153.61,1.30171822]
[1724471082911,3.97140048,153.66,153.61,1.30171822]
[1724471083111,3.97140048,153.65,153.61,1.30171822]
[1724471083334,3.97140048,153.64,153.61,1.30171822]
[1724471083643,20.0,153.68,153.61,1.30171822]
[1724471083819,3.97142831,153.67,153.61,1.30171822]
[1724471084016,3.97142831,153.66,153.61,1.30171822]
[1724471084222,3.97142831,153.65,153.61,1.30171822]
[1724471084415,3.97142831,153.64,153.61,1.30171822]
[1724471084736,20.0,153.68,153.61,1.30171822]
[1724471085045,3.97146701,153.67,153.6,6.3156]
[1724471085339,3.97146701,153.66,153.6,6.3156]
[1724471085541,3.97146701,153.65,153.61,1.30171765]
[1724471085709,3.97146701,153.64,153.61,1.30171765]
[1724471085914,20.0,153.68,153.61,1.30171765]
[1724471086114,3.97138792,153.67,153.61,1.30171765]
[1724471086314,3.97138792,153.66,153.61,1.30171765]
[1724471086627,3.97138792,153.65,153.61,1.30171765]
[1724471086819,3.97138792,153.64,153.61,1.30171765]
[1724471087019,20.0,153.68,153.61,1.30171765]
[1724471087020,39.11950162,153.69,153.61,1.30171765]
[1724471087218,3.97146174,153.68,153.61,1.30171765]
[1724471089438,3.97155756,153.65,153.61,1.30171765]
[1724471089626,3.97155756,153.64,153.61,1.30171765]
[1724471089828,6.92306801,153.69,153.61,1.30171765]
[1724471090031,3.971578,153.68,153.61,1.30171765]
[1724471090238,3.971578,153.67,153.61,1.30171765]
[1724471090455,3.971578,153.66,153.61,1.30171765]
[1724471090626,3.971578,153.65,153.61,1.30171765]
[1724471090830,6.92306801,153.69,153.61,1.30171765]
[1724471091036,3.971543,153.68,153.61,1.30171765]
[1724471091241,3.97155604,153.67,153.61,1.30171765]
[1724471091546,3.97155604,153.66,153.6,6.3156]
[1724471091743,3.97155604,153.65,153.6,6.3156]
[1724471092047,3.97155604,153.64,153.6,6.3156]
[1724471092242,32.61290162,153.69,153.6,6.3156]
[1724471092414,3.97149797,153.68,153.6,6.3156]
[1724471092618,3.97149797,153.67,153.6,6.3156]
[1724471092917,3.97149797,153.66,153.6,6.3156]
[1724471093118,3.97149797,153.65,153.6,6.3156]
[1724471093318,3.97149797,153.64,153.6,6.3156]
[1724471093518,32.61290162,153.69,153.6,6.3156]
[1724471093738,3.97150011,153.68,153.6,6.3156]
[1724471093943,3.97150011,153.67,153.6,6.3156]
[1724471094139,3.97150011,153.66,153.6,6.3156]
[1724471094346,3.9714763,153.65,153.6,6.3156]
[1724471094822,3.9714763,153.64,153.6,6.3156]
[1724471095143,39.11960162,153.69,153.6,6.3156]
[1724471095345,3.97149847,153.68,153.6,6.3156]
[1724471095540,3.97149847,153.67,153.6,6.3156]
[1724471095739,3.97149847,153.66,153.6,6.3156]
[1724471095917,3.97149847,153.65,153.6,6.3156]
[1724471096122,3.97149847,153.64,153.6,6.3156]
[1724471096450,39.11960162,153.69,153.6,6.3156]
[1724471096650,3.97150396,153.68,153.6,6.3156]
[1724471096947,3.97150396,153.67,153.6,6.3156]
[1724471097143,3.97150396,153.66,153.6,6.3156]
[1724471097335,3.97150396,153.65,153.6,6.3156]
[1724471097540,3.97150396,153.64,153.6,6.3156]
[1724471097741,39.11960162,153.69,153.6,6.3156]
[1724471097927,3.97145972,153.68,153.6,6.3156]
[1724471098352,3.97145972,153.67,153.6,6.3156]
[1724471098550,3.97145972,153.66,153.6,6.3156]
[1724471098728,3.97145972,153.65,153.6,6.3156]
[1724471098928,3.97145972,153.64,153.6,6.3156]
[1724471099130,39.11960162,153.69,153.6,6.3156]
[1724471099339,49.22240583,153.68,153.6,6.3156]
[1724471099529,3.97142583,153.67,153.6,6.3156]
[1724471099739,3.97142583,153.66,153.6,6.3156]
[1724471099948,3.97142583,153.65,153.6,6.3156]
[1724471100130,3.97142583,153.64,153.6,6.3156]
[1724471100461,45.25098,153.68,153.6,6.3156]
[1724471100626,3.97148795,153.67,153.6,6.3156]
[1724471100831,45.25098,153.68,153.6,6.3156]
[1724471101049,3.97167383,153.67,153.6,6.3156]
[1724471101650,45.25098,153.68,153.6,6.3156]
[1724471118331,13.30427801,153.69,153.61,17.38912883]
[1724471120035,6.79757801,153.69,153.62,6.6136]
[1724471120264,6.5054,153.72,153.63,1.30147195]
[1724471120490,65.25098,153.71,153.63,1.30147195]
[1724471120760,71.75678,153.71,153.63,1.30147195]
[1724471121947,65.25098,153.71,153.63,1.30147195]
[1724471122829,6.77143562,153.73,153.65,6.6136]
[1724471123035,16.2562,153.79,153.66,1.30124747]
[1724471123235,25.76227066,153.77,153.67,16.0874]
[1724471123433,6.84257086,153.77,153.69,6.6136]
[1724471123667,6.84257086,153.77,153.7,1.30097456]
[1724471123668,0.07243705,153.77,153.7,1.30097456]
[1724471124960,20.07243705,153.77,153.7,1.30097456]
[1724471125862,52.26547066,153.77,153.69,6.6136]
[1724471126063,45.25098,153.76,153.69,6.6136]
[1724471126267,45.25098,153.76,153.7,1.30109746]
[1724471126578,45.25098,153.76,153.69,7.91465355]
[1724471127586,45.25098,153.76,153.7,1.30105508]
[1724471128183,25.68983361,153.73,153.67,16.0874]
[1724471128364,20.25098,153.72,153.67,16.0874]
[1724471128564,25.68983361,153.69,153.65,6.6136]
[1724471129683,32.19553361,153.71,153.65,6.6136]
[1724471129874,65.25098,153.7,153.65,6.6136]
[1724471132669,32.19493361,153.73,153.65,6.6136]
[1724471132870,20.0,153.72,153.65,6.6136]
[1724471133277,20.0,153.72,153.66,1.30143237]
[1724471133473,40.77993361,153.75,153.65,6.6136]
[1724471133474,26.5049,153.73,153.65,6.6136]
[1724471133873,0.12549,153.72,153.65,7.91503636]
[1724471134491,45.25098,153.72,153.65,7.91503636]
[1724471134789,0.12549,153.72,153.66,1.30143452]
[1724471134993,20.0,153.73,153.65,6.6136]
[1724471134994,25.68983361,153.73,153.65,6.6136]
[1724471135171,6.5057,153.72,153.65,6.6136]
[1724471136395,20.0,153.71,153.65,6.6136]
[1724471137374,20.0,153.72,153.65,6.6136]
[1724471137596,20.0,153.72,153.65,7.91499777]
[1724471137775,26.63039,153.73,153.65,7.91499777]
[1724471138104,45.25098,153.72,153.65,7.91499777]
[1724471138271,26.5049,153.73,153.65,7.91499777]
[1724471141694,20.0,153.73,153.65,7.91499777]
[1724471141897,20.0,153.73,153.66,16.1528]
[1724471142071,20.0,153.73,153.67,1.30126237]
[1724471146208,0.07243705,153.77,153.7,16.1528]
[1724471146380,0.07243705,153.77,153.71,1.30096859]
[1724471153084,0.07243705,153.77,153.74,16.1528]
[1724471153404,0.07243705,153.77,153.75,1.30064135]
[1724471154475,0.07243705,153.77,153.74,16.1528]
[1724471155307,0.07243705,153.77,153.74,17.45346049]
[1724471166608,0.07243705,153.77,153.74,16.1528]
[1724471172509,0.07243705,153.77,153.75,1.30061438]
[1724471175323,0.07243705,153.77,153.74,16.1528]
[1724471178405,0.07243705,153.77,153.73,6.6067]
[1724471179336,0.07243705,153.77,153.71,15.5531]
[1724471180568,0.07243705,153.77,153.63,6.514]
[1724471180569,25.68983361,153.73,153.59,6.76400294]
[1724471180709,16.3082,153.74,153.57,6.1338]
[1724471180710,25.68983361,153.7,153.57,6.1338]
[1724471181031,25.68983361,153.68,153.57,6.1338]
[1724471181221,65.12549,153.67,153.57,6.1338]
[1724471182434,65.12549,153.67,153.6,25.68983361]
[1724471182435,20.0,153.67,153.6,25.68983361]
[1724471182607,20.0,153.68,153.61,1.3017064]
[1724471183025,20.0,153.71,153.61,1.3017064]
[1724471183204,16.3082,153.74,153.66,25.68983361]
[1724471183416,6.13473705,153.77,153.67,1.30126289]
[1724471183842,6.5036,153.76,153.68,1.30120724]
[1724471184123,6.13473705,153.77,153.68,1.30120724]
[1724471184124,0.07243705,153.77,153.68,1.30120724]
[1724471185025,20.07243705,153.77,153.67,1.30115762]
[1724471185215,45.0,153.76,153.68,1.30115338]
[1724471185416,20.12549,153.75,153.68,1.30115338]
[1724471186123,6.57563705,153.77,153.68,26.99098699]
[1724471186124,0.07243705,153.77,153.68,26.99098699]
[1724471186336,20.07243705,153.77,153.68,26.99098699]
[1724471186531,20.07243705,153.77,153.68,25.68983361]
[1724471186705,20.07243705,153.77,153.69,1.30099375]
[1724471187636,20.07243705,153.77,153.68,25.68983361]
[1724471188439,20.07243705,153.77,153.69,1.3009952]
[1724471188939,20.07243705,153.77,153.68,25.68983361]
[1724471194051,20.07243705,153.77,153.69,1.30099825]
[1724471194220,20.07243705,153.77,153.7,6.1338]
[1724471194416,0.07243705,153.77,153.71,1.30092218]
[1724471194842,20.07243705,153.77,153.71,1.30092218]
[1724471196232,20.07243705,153.77,153.7,6.1338]
[1724471196542,20.07243705,153.77,153.71,16.85402339]
[1724471196543,0.07243705,153.77,153.71,16.85402339]
[1724471197842,0.07243705,153.77,153.71,15.5531]
[1724471201320,6.504,153.76,153.71,15.5531]
[1724471201523,32.19453361,153.74,153.67,16.6626]
[1724471201726,25.68983361,153.74,153.67,16.6626]
[1724471203232,6.62949,153.75,153.67,16.6626]
[1724471203430,20.0,153.74,153.68,1.30118992]
[1724471203944,0.12549,153.75,153.68,1.30118992]
[1724471204148,0.25098,153.75,153.68,1.30118992]
[1724471204325,20.0,153.75,153.68,1.30118992]
[1724471205030,0.07243705,153.77,153.7,25.68983361]
[1724471205229,0.07243705,153.77,153.71,1.30091735]
[1724471206130,0.07243705,153.77,153.69,1.30091736]
[1724471207560,0.07243705,153.77,153.67,16.6626]
[1724471208148,0.07243705,153.77,153.68,1.30092082]
[1724471211461,0.07243705,153.77,153.67,16.6626]
[1724471211748,0.07243705,153.77,153.68,1.3009251]
[1724471211959,0.07243705,153.77,153.67,16.6626]
[1724471212257,0.07243705,153.77,153.68,1.30092397]
[1724471220035,0.07243705,153.77,153.69,7.78432781]
[1724471220246,0.07243705,153.77,153.69,7.90981781]
[1724471220660,0.07243705,153.77,153.69,6.4834]
[1724471222773,51.82671705,153.77,153.69,6.4834]
[1724471223862,51.82671705,153.77,153.7,1.30108873]
[1724471224371,45.32341705,153.77,153.7,1.30108873]
[1724471224774,0.07243705,153.77,153.7,1.30108873]
[1724471226655,0.07243705,153.77,153.71,1.30093188]
[1724471229693,0.07243705,153.77,153.69,6.4834]
[1724471229851,0.07243705,153.77,153.7,1.30088024]
[1724471230180,0.07243705,153.77,153.71,1.30088035]
[1724471231851,0.07243705,153.77,153.7,1.30088041]
[1724471232052,0.07243705,153.77,153.71,1.30087991]
[1724471234964,0.07243705,153.77,153.7,1.30088049]
[1724471235163,0.07243705,153.77,153.71,1.30088074]
[1724471236056,0.07243705,153.77,153.7,1.30088016]
[1724471236261,0.07243705,153.77,153.71,1.30088088]
[1724471237297,0.07243705,153.77,153.7,1.30088107]
[1724471237594,0.07243705,153.77,153.69,6.4834]
[1724471237595,0.07243705,153.77,153.71,1.30088052]
[1724471239263,26.5024,153.79,153.71,1.30088052]
[1724471240102,26.5024,153.79,153.7,1.30087994]
[1724471240385,26.5024,153.79,153.69,6.4834]
[1724471240386,26.5024,153.79,153.71,1.30088206]
[1724471241265,26.5024,153.79,153.7,1.30088185]
[1724471241464,26.5024,153.79,153.71,1.30088234]